fUSD/lending_fUSD_20260520
["ID","MTS","AMOUNT","RATE_DAILY","PERIOD"]
[422660471,1779220245000,-500.0,0.00014976,2]
[422660475,1779220245000,-500.0,0.00014976,2]
[422660487,1779220245000,-225.67224447,0.00014986,2]
[422660484,1779220245000,-500.0,0.00014976,2]
[422660486,1779220245000,-152.10400649,0.00014986,2]
[422660476,1779220245000,-500.0,0.00014976,2]
[422660477,1779220245000,-500.0,0.00014976,2]
[422660467,1779220245000,-1908.48,0.00014976,2]
[422660469,1779220245000,-1908.48,0.00014976,2]
[422660468,1779220245000,-1908.48,0.00014976,2]
[422660464,1779220245000,-1908.48,0.00014976,2]
[422660470,1779220245000,-1908.48,0.00014976,2]
[422660485,1779220245000,-284.58525916,0.00014986,2]
[422660530,1779220246000,-151.0,0.00014996,2]
[422660533,1779220246000,-151.0,0.00014997,2]
[422660535,1779220246000,-417.0,0.00014999,2]
[422660537,1779220246000,-718.51,0.00014999,2]
[422660547,1779220246000,-1908.48,0.00014999,2]
[422660534,1779220246000,-2401.8,0.00014998,2]
[422660539,1779220246000,-718.51,0.00014999,2]
[422660538,1779220246000,-718.51,0.00014999,2]
[422660540,1779220246000,-718.51,0.00014999,2]
[422660548,1779220246000,-1908.48,0.00014999,2]
[422660544,1779220246000,-1908.48,0.00014999,2]
[422660531,1779220246000,-151.0,0.00014996,2]
[422660536,1779220246000,-718.51,0.00014999,2]
[422660529,1779220246000,-151.0,0.00014996,2]
[422660522,1779220246000,-897.36146,0.00014996,2]
[422660526,1779220246000,-151.0,0.00014996,2]
[422660528,1779220246000,-151.0,0.00014996,2]
[422660523,1779220246000,-897.36146,0.00014996,2]
[422660521,1779220246000,-897.36146,0.00014996,2]
[422660520,1779220246000,-897.36146,0.00014996,2]
[422660516,1779220246000,-10865.7920592,0.00014996,2]
[422660519,1779220246000,-151.0,0.00014996,2]
[422660524,1779220246000,-293.870436,0.00014996,2]
[422660518,1779220246000,-151.0,0.00014996,2]
[422660517,1779220246000,-151.0,0.00014996,2]
[422660525,1779220246000,-151.0,0.00014996,2]
[422660515,1779220246000,-151.0,0.00014996,2]
[422660546,1779220246000,-1908.48,0.00014999,2]
[422660527,1779220246000,-151.0,0.00014996,2]
[422660541,1779220246000,-718.51,0.00014999,2]
[422660570,1779220246000,-300.0,0.00014999,2]
[422660549,1779220246000,-1908.6298039,0.00014999,2]
[422660578,1779220246000,-145406.45620703,0.00015,2]
[422660577,1779220246000,-628570.73403546,0.00015,2]
[422660576,1779220246000,-688065.86224083,0.00015,2]
[422660575,1779220246000,-830781.75466806,0.00015,2]
[422660572,1779220246000,-4240818.23749849,0.00015,2]
[422660573,1779220246000,-715.0,0.00015,2]
[422660571,1779220246000,-271.45547297,0.00014999,2]
[422660542,1779220246000,-718.66366133,0.00014999,2]
[422660569,1779220246000,-666.0,0.00014999,2]
[422660574,1779220246000,-300.45449786,0.00015,2]
[422660564,1779220246000,-300.0,0.00014999,2]
[422660567,1779220246000,-300.0,0.00014999,2]
[422660563,1779220246000,-300.0,0.00014999,2]
[422660566,1779220246000,-300.0,0.00014999,2]
[422660568,1779220246000,-248.58448134,0.00014999,2]
[422660559,1779220246000,-850.44540735,0.00014999,2]
[422660565,1779220246000,-666.0,0.00014999,2]
[422660545,1779220246000,-1908.48,0.00014999,2]
[422660551,1779220246000,-500.0,0.00014999,2]
[422660550,1779220246000,-212.82417601,0.00014999,2]
[422660555,1779220246000,-500.0,0.00014999,2]
[422660552,1779220246000,-509.12282674,0.00014999,2]
[422660561,1779220246000,-300.0,0.00014999,2]
[422660543,1779220246000,-1908.48,0.00014999,2]
[422660553,1779220246000,-500.0,0.00014999,2]
[422660557,1779220246000,-292.55428223,0.00014999,2]
[422660560,1779220246000,-300.0,0.00014999,2]
[422660554,1779220246000,-500.0,0.00014999,2]
[422660562,1779220246000,-300.0,0.00014999,2]
[422660556,1779220246000,-195.76615637,0.00014999,2]
[422660590,1779220247000,-2265824.45372284,0.00015,2]
[422660591,1779220247000,-1959.54565375,0.00015,2]
[422660589,1779220247000,-151.0,0.00014996,2]
[422660588,1779220247000,-151.0,0.00014996,2]
[422660586,1779220247000,-500.0,0.00013698,2]
[422660585,1779220247000,-500.0,0.00013698,2]
[422660580,1779220247000,-500.0,0.00013698,2]
[422660584,1779220247000,-500.0,0.00013698,2]
[422660592,1779220247000,-800.30798175,0.00015,2]
[422660582,1779220247000,-500.0,0.00013698,2]
[422660581,1779220247000,-500.0,0.00013698,2]
[422660579,1779220247000,-500.0,0.00013698,2]
[422660587,1779220247000,-151.0,0.000148,2]
[422660594,1779220247000,-399.8127821,0.00013698,2]
[422660583,1779220247000,-500.0,0.00013698,2]
[422660596,1779220247000,-289.5,0.00015,2]
[422660606,1779220247000,-512.94389956,0.00013698,2]
[422660605,1779220247000,-500.0,0.00013698,2]
[422660607,1779220247000,-2524.90133145,0.00015,2]
[422660601,1779220247000,-500.0,0.00013698,2]
[422660602,1779220247000,-500.0,0.00013698,2]
[422660608,1779220247000,-100000.0,0.00015,2]
[422660597,1779220247000,-40452.92053555,0.00015,2]
[422660604,1779220247000,-569711.96579466,0.00015,2]
[422660595,1779220247000,-62258.03271721,0.00015,2]
[422660593,1779220247000,-684.50756086,0.00015,2]
[422660603,1779220247000,-269.012836,0.000148,2]
[422660600,1779220247000,-667.05496361,0.00012556,2]
[422660599,1779220247000,-834.84277497,0.00012556,2]
[422660598,1779220247000,-661.03999474,0.00012556,2]
[422660611,1779220518000,1541.0,0.00029987,120]
[422660613,1779220519000,1541.0,0.00029987,120]
[422660612,1779220519000,1541.0,0.00029987,120]
[422660615,1779220520000,1541.0,0.00029987,120]
[422660614,1779220520000,1541.0,0.00029987,120]
[422660616,1779220521000,1541.0,0.00029987,120]
[422660617,1779220522000,1541.0,0.00029987,120]
[422660618,1779220522000,151.0,0.00029987,120]
[422660620,1779220522000,151.0,0.00029987,120]
[422660619,1779220522000,1541.0,0.00029987,120]
[422660624,1779220523000,1541.0,0.00029987,120]
[422660621,1779220523000,151.0,0.00029987,120]
[422660622,1779220523000,1541.0,0.00029987,120]
[422660623,1779220523000,151.0,0.00029987,120]
[422660626,1779220524000,151.0,0.00029987,120]
[422660625,1779220524000,1541.0,0.00029987,120]
[422660628,1779220525000,1541.0,0.00029987,120]
[422660627,1779220525000,1541.0,0.00029987,120]
[422660630,1779220526000,1541.0,0.00029987,120]
[422660629,1779220526000,1541.0,0.00029987,120]
[422660632,1779220527000,1541.0,0.00029987,120]
[422660631,1779220527000,1541.0,0.00029987,120]
[422660633,1779220528000,1541.0,0.00029987,120]
[422660634,1779220529000,1541.0,0.00029987,120]
[422660636,1779220530000,1541.0,0.00029987,120]
[422660635,1779220530000,1541.0,0.00029987,120]
[422660638,1779220531000,1541.0,0.00029987,120]
[422660637,1779220531000,1541.0,0.00029987,120]
[422660640,1779220532000,1541.0,0.00029987,120]
[422660639,1779220532000,1541.0,0.00029987,120]
[422660641,1779220533000,1541.0,0.00029987,120]
[422660643,1779220537000,153.0,0.00029987,120]
[422660642,1779220537000,153.0,0.00029987,120]
[422660644,1779220538000,153.0,0.00029987,120]
[422660645,1779220541000,152.0,0.00029987,120]
[422660646,1779220542000,152.0,0.00029987,120]
[422660648,1779220543000,152.0,0.00029987,120]
[422660647,1779220543000,152.0,0.00029987,120]
[422660650,1779220544000,152.0,0.00029987,120]
[422660649,1779220544000,152.0,0.00029987,120]
[422660652,1779220545000,152.0,0.00029987,120]
[422660651,1779220545000,152.0,0.00029987,120]
[422660654,1779220546000,152.0,0.00029987,120]
[422660653,1779220546000,152.0,0.00029987,120]
[422660655,1779220547000,152.0,0.00029987,120]
[422660656,1779220548000,152.0,0.00029987,120]
[422660657,1779220548000,152.0,0.00029987,120]
[422660658,1779220549000,152.0,0.00029987,120]
[422660660,1779220552000,154.0,0.00029987,120]
[422660659,1779220552000,157.96535972,0.00029987,120]
[422660665,1779220818000,1541.0,0.00029987,120]
[422660664,1779220818000,1541.0,0.00029987,120]
[422660667,1779220819000,1541.0,0.00029987,120]
[422660666,1779220819000,1541.0,0.00029987,120]
[422660668,1779220820000,1541.0,0.00029987,120]
[422660669,1779220821000,1541.0,0.00029987,120]
[422660670,1779220821000,1541.0,0.00029987,120]
[422660671,1779220822000,1541.0,0.00029987,120]
[422660673,1779220823000,1541.0,0.00029987,120]
[422660672,1779220823000,1541.0,0.00029987,120]
[422660675,1779220824000,1541.0,0.00029987,120]
[422660674,1779220824000,1541.0,0.00029987,120]
[422660676,1779220825000,1541.0,0.00029987,120]
[422660677,1779220825000,1541.0,0.00029987,120]
[422660678,1779220826000,1541.0,0.00029987,120]
[422660679,1779220827000,1541.0,0.00029987,120]
[422660680,1779220827000,1541.0,0.00029987,120]
[422660682,1779220828000,479.37347859,0.00029987,120]
[422660681,1779220828000,1541.0,0.00029987,120]
[422660683,1779220829000,1541.0,0.00029987,120]
[422660685,1779220834000,152.0,0.00029987,120]
[422660684,1779220834000,152.0,0.00029987,120]
[422660686,1779220835000,152.0,0.00029987,120]
[422660687,1779220836000,259.7261835,0.00029987,120]
[422660688,1779220836000,152.0,0.00029987,120]
[422660694,1779220860000,-1000.0,0.000119,4]
[422660693,1779220860000,-406.1017,0.000118,2]
[422660690,1779220860000,-200.0,0.00011791,2]
[422660691,1779220860000,-150.0,0.00011792,2]
[422660692,1779220860000,-500.0,0.000118,4]
[422660689,1779220860000,-193.70428319,0.00011714,2]
[422660696,1779220862000,271.06410122,0.000118,2]
[422660695,1779220862000,1161.12141729,0.000118,2]
[422660697,1779220864000,180.70940081,0.000118,2]
[422660698,1779220864000,774.08094486,0.000118,2]
[422660700,1779220865000,151.0,0.000118,2]
[422660699,1779220865000,516.05396324,0.000118,2]
[422660701,1779220866000,210.41880163,0.000118,2]
[422660702,1779220867000,344.03597549,0.000118,2]
[422660703,1779220880000,152.0,0.00011404,7]
[422660705,1779220896000,-645.38551449,0.000114,2]
[422660706,1779220896000,-1200.0,0.00012003,2]
[422660707,1779220896000,-300.0,0.00012003,2]
[422660708,1779220896000,-5147.734,0.00012004,2]
[422660711,1779220896000,-544.54158551,0.00012148,2]
[422660710,1779220896000,-6803.7659,0.00012148,2]
[422660709,1779220896000,-358.573,0.00012004,2]
[422660712,1779220907000,-3000.0,0.00012148,2]
[422660716,1779220948000,347.52,6.906e-05,2]
[422660715,1779220948000,347.52,6.603e-05,2]
[422660714,1779220948000,347.52,6.3e-05,2]
[422660713,1779220948000,347.52,5.997e-05,2]
[422660717,1779220949000,347.52,7.209e-05,2]
[422660718,1779220949000,347.52,7.513e-05,2]
[422660721,1779220949000,347.52,8.422e-05,2]
[422660720,1779220949000,347.52,8.119e-05,2]
[422660719,1779220949000,347.52,7.816e-05,2]
[422660724,1779220950000,347.52,9.332e-05,2]
[422660723,1779220950000,347.52,9.029e-05,2]
[422660722,1779220950000,347.52,8.726e-05,2]
[422660726,1779220951000,347.52,9.939e-05,2]
[422660725,1779220951000,347.52,9.635e-05,2]
[422660727,1779220953000,635.34439843,8e-05,2]
[422660728,1779220972000,152.0,0.00011402,7]
[422660729,1779220973000,152.0,0.00011402,7]
[422660730,1779220980000,1495.04471222,0.0001,2]
[422660731,1779220988000,223.140556,7.945e-05,2]
[422660732,1779221059000,200.0,5e-05,120]
[422660754,1779221083000,-300.0,0.00011899,2]
[422660752,1779221083000,-700.0,0.000118,4]
[422660750,1779221083000,-900.0,0.000117,4]
[422660746,1779221083000,-347.52,0.00011455,2]
[422660745,1779221083000,-164.45,0.00011381,2]
[422660749,1779221083000,-300.0,0.000117,4]
[422660747,1779221083000,-217.68465233,0.00011522,2]
[422660748,1779221083000,-500.0,0.00011614,2]
[422660751,1779221083000,-347.52,0.00011758,2]
[422660743,1779221083000,-250.0,0.00011266,2]
[422660737,1779221083000,-250.0,0.00010571,2]
[422660741,1779221083000,-150.0,0.00011094,2]
[422660742,1779221083000,-347.52,0.00011151,2]
[422660739,1779221083000,-217.68465233,0.00010995,2]
[422660740,1779221083000,-2000.0,0.00011035,2]
[422660738,1779221083000,-347.52,0.00010848,2]
[422660736,1779221083000,-347.52,0.00010545,2]
[422660734,1779221083000,-250.0,0.00010393,2]
[422660753,1779221083000,-1800.0,0.000118,4]
[422660733,1779221083000,-347.52,0.00010242,2]
[422660735,1779221083000,-150.0,0.00010402,2]
[422660744,1779221083000,-300.76409514,0.00011266,2]
[422660755,1779221083000,-6777.635775,0.000119,2]
[422660779,1779221083000,-672.36947669,0.00012246,2]
[422660759,1779221083000,-150.0,0.00012147,2]
[422660756,1779221083000,-1000.0,0.000119,4]
[422660780,1779221083000,-672.36947669,0.00012246,2]
[422660777,1779221083000,-159.29702667,0.00012239,2]
[422660776,1779221083000,-734.63440011,0.00012196,2]
[422660775,1779221083000,-6966.63875907,0.00012196,2]
[422660772,1779221083000,-796.31198527,0.00012149,2]
[422660774,1779221083000,-161.58832768,0.00012188,2]
[422660773,1779221083000,-402.44586272,0.00012149,2]
[422660771,1779221083000,-299.99,0.00012149,2]
[422660770,1779221083000,-9999.99,0.00012149,2]
[422660769,1779221083000,-7762.9257781,0.00012148,2]
[422660778,1779221083000,-500.0,0.00012246,2]
[422660768,1779221083000,-2533.27,0.00012148,2]
[422660767,1779221083000,-7210.18,0.00012148,2]
[422660758,1779221083000,-1000.0,0.00012147,2]
[422660760,1779221083000,-5328.234,0.00012147,2]
[422660763,1779221083000,-625.83331449,0.00012148,2]
[422660757,1779221083000,-2700.0,0.000119,4]
[422660764,1779221083000,-55126.7145,0.00012148,2]
[422660762,1779221083000,-690.85711466,0.00012147,2]
[422660765,1779221083000,-6803.7659,0.00012148,2]
[422660766,1779221083000,-2500.0,0.00012148,2]
[422660761,1779221083000,-398.422,0.00012147,2]
[422660800,1779221084000,-672.36947669,0.00012246,2]
[422660791,1779221084000,-672.36947669,0.00012246,2]
[422660798,1779221084000,-672.36947669,0.00012246,2]
[422660796,1779221084000,-672.36947669,0.00012246,2]
[422660794,1779221084000,-672.36947669,0.00012246,2]
[422660793,1779221084000,-672.36947669,0.00012246,2]
[422660795,1779221084000,-672.36947669,0.00012246,2]
[422660792,1779221084000,-672.36947669,0.00012246,2]
[422660789,1779221084000,-672.36947669,0.00012246,2]
[422660785,1779221084000,-500.0,0.00012246,2]
[422660788,1779221084000,-672.36947669,0.00012246,2]
[422660787,1779221084000,-560.64433271,0.00012246,2]
[422660786,1779221084000,-672.36947669,0.00012246,2]
[422660784,1779221084000,-672.36947669,0.00012246,2]
[422660783,1779221084000,-500.0,0.00012246,2]
[422660782,1779221084000,-672.36947669,0.00012246,2]
[422660781,1779221084000,-500.0,0.00012246,2]
[422660797,1779221084000,-672.36947669,0.00012246,2]
[422660790,1779221084000,-672.36947669,0.00012246,2]
[422660799,1779221084000,-672.36947669,0.00012246,2]
[422660805,1779221084000,-672.36947669,0.00012246,2]
[422660802,1779221084000,-672.36947669,0.00012246,2]
[422660821,1779221084000,-672.36947669,0.00012246,2]
[422660820,1779221084000,-672.36947669,0.00012246,2]
[422660819,1779221084000,-672.36947669,0.00012246,2]
[422660818,1779221084000,-672.36947669,0.00012246,2]
[422660817,1779221084000,-672.36947669,0.00012246,2]
[422660814,1779221084000,-672.36947669,0.00012246,2]
[422660801,1779221084000,-672.36947669,0.00012246,2]
[422660815,1779221084000,-672.36947669,0.00012246,2]
[422660813,1779221084000,-672.36947669,0.00012246,2]
[422660816,1779221084000,-672.36947669,0.00012246,2]
[422660812,1779221084000,-672.36947669,0.00012246,2]
[422660810,1779221084000,-672.36947669,0.00012246,2]
[422660804,1779221084000,-672.36947669,0.00012246,2]
[422660807,1779221084000,-672.36947669,0.00012246,2]
[422660806,1779221084000,-672.36947669,0.00012246,2]
[422660803,1779221084000,-672.36947669,0.00012246,2]
[422660811,1779221084000,-672.36947669,0.00012246,2]
[422660809,1779221084000,-672.36947669,0.00012246,2]
[422660808,1779221084000,-672.36947669,0.00012246,2]
[422660828,1779221085000,-672.36947669,0.00012246,2]
[422660822,1779221085000,-672.36947669,0.00012246,2]
[422660823,1779221085000,-672.36947669,0.00012246,2]
[422660824,1779221085000,-672.36947669,0.00012246,2]
[422660827,1779221085000,-672.36947669,0.00012246,2]
[422660825,1779221085000,-672.36947669,0.00012246,2]
[422660826,1779221085000,-672.36947669,0.00012246,2]
[422660830,1779221085000,-1098.07046974,0.00012248,3]
[422660829,1779221085000,-500.0,0.00012247,2]
[422660832,1779221085000,-173.2997664,0.00012248,2]
[422660840,1779221085000,-242703.93711586,0.00012249,2]
[422660836,1779221085000,-500.0,0.00012248,2]
[422660835,1779221085000,-502.75059609,0.00012248,2]
[422660833,1779221085000,-500.0,0.00012248,2]
[422660834,1779221085000,-500.0,0.00012248,2]
[422660837,1779221085000,-337.05690382,0.00012248,2]
[422660838,1779221085000,-500.0,0.00012248,2]
[422660839,1779221085000,-500.0,0.00012248,2]
[422660831,1779221085000,-296.77,0.00012248,2]
[422660841,1779221106000,1465.27460355,0.0001,2]
[422660842,1779221130000,8491.64661936,0.0001,2]
[422660843,1779221136000,1712.29430825,9.04e-05,2]
[422660844,1779221141000,173.56683033,0.0001,2]
[422660846,1779221195000,-245.53484275,0.00010142,2]
[422660847,1779221222000,168.65,9.221e-05,2]
[422660851,1779221253000,-3400.0,0.000118,4]
[422660850,1779221253000,-168.65,0.00011065,2]
[422660849,1779221253000,-168.65,0.00010143,2]
[422660848,1779221253000,-254.46515725,0.00010142,2]
[422660852,1779221253000,-6408.23484275,0.000119,4]
[422660853,1779221340000,1000.0,0.00029986,120]
[422660863,1779221431000,-166.37,0.00011691,2]
[422660857,1779221431000,-364.44,0.00011342,2]
[422660859,1779221431000,-50.68296065,0.00011421,2]
[422660860,1779221431000,-1149.31703935,0.00011421,2]
[422660858,1779221431000,-150.0,0.00011421,2]
[422660856,1779221431000,-217.68465233,0.00011322,2]
[422660861,1779221431000,-36008.59,0.00011422,2]
[422660862,1779221431000,-2927.71,0.00011422,2]
[422660855,1779221431000,-200.0,0.00011294,2]
[422660865,1779221431000,-391.76515725,0.000119,4]
[422660866,1779221431000,-1038.4245954,0.00011939,2]
[422660867,1779221431000,-56141.88613518,0.00011949,2]
[422660868,1779221431000,-3823.15770812,0.00011949,2]
[422660869,1779221431000,-448.87485434,0.00011949,2]
[422660870,1779221431000,-700.19088126,0.00011949,2]
[422660871,1779221431000,-708.24423702,0.00011949,2]
[422660872,1779221431000,-1167.93980651,0.00011949,2]
[422660864,1779221431000,-13830.17751871,0.00011821,2]
[422660885,1779221437000,-466.4,0.00011948,2]
[422660937,1779221438000,-681.70315106,0.00011948,2]
[422660933,1779221438000,-681.70315106,0.00011948,2]
[422660945,1779221438000,-681.70315106,0.00011948,2]
[422660927,1779221438000,-681.70315106,0.00011948,2]
[422660935,1779221438000,-681.70315106,0.00011948,2]
[422660943,1779221438000,-681.70315106,0.00011948,2]
[422660931,1779221438000,-681.70315106,0.00011948,2]
[422660952,1779221438000,-681.70315106,0.00011948,2]
[422660929,1779221438000,-681.70315106,0.00011948,2]
[422660950,1779221438000,-681.70315106,0.00011948,2]
[422660939,1779221438000,-681.70315106,0.00011948,2]
[422660947,1779221438000,-681.70315106,0.00011948,2]
[422660948,1779221438000,-681.70315106,0.00011948,2]
[422660956,1779221438000,-681.70315106,0.00011948,2]
[422660954,1779221438000,-681.70315106,0.00011948,2]
[422660941,1779221438000,-681.70315106,0.00011948,2]
[422660925,1779221438000,-681.70315106,0.00011948,2]
[422660908,1779221438000,-681.70315106,0.00011948,2]
[422660912,1779221438000,-681.70315106,0.00011948,2]
[422660891,1779221438000,-551.92541726,0.00011948,2]
[422660889,1779221438000,-33.6,0.00011948,2]
[422660902,1779221438000,-284.51603697,0.00011948,2]
[422660900,1779221438000,-681.70315106,0.00011948,2]
[422660897,1779221438000,-500.0,0.00011948,2]
[422660895,1779221438000,-285.93983268,0.00011948,2]
[422660893,1779221438000,-500.0,0.00011948,2]
[422660922,1779221438000,-681.70315106,0.00011948,2]
[422660904,1779221438000,-681.70315106,0.00011948,2]
[422660916,1779221438000,-681.70315106,0.00011948,2]
[422660918,1779221438000,-681.70315106,0.00011948,2]
[422660964,1779221438000,-681.70315106,0.00011948,2]
[422660920,1779221438000,-681.70315106,0.00011948,2]
[422660906,1779221438000,-681.70315106,0.00011948,2]
[422660910,1779221438000,-681.70315106,0.00011948,2]
[422660923,1779221438000,-681.70315106,0.00011948,2]
[422660914,1779221438000,-681.70315106,0.00011948,2]
[422660972,1779221438000,-681.70315106,0.00011948,2]
[422661007,1779221438000,-163.24,0.00011981,2]
[422660966,1779221438000,-681.70315106,0.00011948,2]
[422661003,1779221438000,-63562.10898687,0.00011949,2]
[422661002,1779221438000,-147486.38141533,0.00011949,2]
[422661004,1779221438000,-128.52294811,0.00011949,2]
[422661005,1779221438000,-30101.03951096,0.00011949,2]
[422661006,1779221438000,-1087501.46617693,0.00011949,2]
[422661008,1779221438000,-499.99,0.00011981,2]
[422661009,1779221438000,-168.65,0.00011987,2]
[422661012,1779221438000,-150.99,0.00011987,2]
[422661010,1779221438000,-851.3,0.00011987,2]
[422661013,1779221438000,-6406.5915,0.00012049,2]
[422661011,1779221438000,-299.99,0.00011987,2]
[422661014,1779221438000,-4170.3749,0.00012049,2]
[422661015,1779221438000,-99130.5674,0.00012049,2]
[422661016,1779221438000,-9999.99,0.00012049,2]
[422660970,1779221438000,-681.70315106,0.00011948,2]
[422660999,1779221438000,-681.70315106,0.00011948,2]
[422661000,1779221438000,-681.70315106,0.00011948,2]
[422661017,1779221438000,-999.99,0.00012049,2]
[422661001,1779221438000,-108230.18733937,0.00011949,2]
[422660997,1779221438000,-681.70315106,0.00011948,2]
[422660962,1779221438000,-681.70315106,0.00011948,2]
[422660958,1779221438000,-681.70315106,0.00011948,2]
[422660960,1779221438000,-681.70315106,0.00011948,2]
[422660974,1779221438000,-681.70315106,0.00011948,2]
[422660978,1779221438000,-681.70315106,0.00011948,2]
[422660976,1779221438000,-681.70315106,0.00011948,2]
[422660984,1779221438000,-681.70315106,0.00011948,2]
[422660968,1779221438000,-681.70315106,0.00011948,2]
[422660985,1779221438000,-681.70315106,0.00011948,2]
[422660993,1779221438000,-681.70315106,0.00011948,2]
[422660980,1779221438000,-681.70315106,0.00011948,2]
[422660989,1779221438000,-681.70315106,0.00011948,2]
[422660982,1779221438000,-681.70315106,0.00011948,2]
[422660987,1779221438000,-681.70315106,0.00011948,2]
[422660991,1779221438000,-681.70315106,0.00011948,2]
[422660995,1779221438000,-681.70315106,0.00011948,2]
[422661061,1779221439000,-203.9,0.0001262,2]
[422661072,1779221439000,-168.65,0.00012909,2]
[422661059,1779221439000,-203.9,0.0001262,2]
[422661071,1779221439000,-10200.0,0.000129,4]
[422661056,1779221439000,-203.9,0.0001262,2]
[422661052,1779221439000,-200.0,0.0001262,2]
[422661049,1779221439000,-1680.0,0.00012563,2]
[422661054,1779221439000,-203.9,0.0001262,2]
[422661048,1779221439000,-234.28,0.00012552,2]
[422661050,1779221439000,-258.01348426,0.00012566,2]
[422661058,1779221439000,-203.9,0.0001262,2]
[422661055,1779221439000,-203.9,0.0001262,2]
[422661070,1779221439000,-234.28,0.00012866,2]
[422661069,1779221439000,-500.0,0.00012796,2]
[422661074,1779221439000,-2055.7152744,0.00013,2]
[422661064,1779221439000,-200.0,0.00012746,2]
[422661073,1779221439000,-23255.5182649,0.00012935,2]
[422661062,1779221439000,-204.0,0.0001262,2]
[422661067,1779221439000,-364.44,0.0001276,2]
[422661068,1779221439000,-152.0,0.00012788,2]
[422661075,1779221439000,-19922.04075653,0.00013,5]
[422661079,1779221439000,-500.0,0.0001307,2]
[422661086,1779221439000,-600.0,0.00013356,2]
[422661080,1779221439000,-234.28,0.0001318,2]
[422661085,1779221439000,-500.0,0.00013356,2]
[422661083,1779221439000,-500.0,0.00013344,2]
[422661053,1779221439000,-203.9,0.0001262,2]
[422661066,1779221439000,-56952.08652334,0.00012759,2]
[422661051,1779221439000,-2060.05305337,0.00012608,2]
[422661027,1779221439000,-2716.4480148,0.00012247,2]
[422661057,1779221439000,-203.9,0.0001262,2]
[422661021,1779221439000,-2500.0,0.00012149,2]
[422661018,1779221439000,-1000.0,0.00012148,2]
[422661020,1779221439000,-2060.05305343,0.00012149,2]
[422661019,1779221439000,-56952.0865234,0.00012149,2]
[422661023,1779221439000,-2747.52916997,0.00012246,2]
[422661029,1779221439000,-208.36372684,0.00012248,2]
[422661030,1779221439000,-200.0,0.00012249,2]
[422661022,1779221439000,-198.63,0.00012228,2]
[422661032,1779221439000,-229.35731699,0.00012249,2]
[422661031,1779221439000,-2530.597107,0.00012249,2]
[422661033,1779221439000,-18533.9407092,0.00012249,2]
[422661026,1779221439000,-1134.9893546,0.00012246,2]
[422661025,1779221439000,-186.80573571,0.00012246,2]
[422661046,1779221439000,-200.0,0.00012495,2]
[422661024,1779221439000,-2245.76973632,0.00012246,2]
[422661034,1779221439000,-164.45,0.00012329,2]
[422661037,1779221439000,-208.58623393,0.00012374,2]
[422661036,1779221439000,-200.0,0.00012371,2]
[422661035,1779221439000,-175.81059483,0.00012355,2]
[422661076,1779221439000,-5412.79929364,0.0001305,2]
[422661045,1779221439000,-255.0,0.00012483,2]
[422661038,1779221439000,-160.0,0.00012382,2]
[422661040,1779221439000,-987.48115053,0.00012397,2]
[422661042,1779221439000,-33191.258,0.00012402,2]
[422661041,1779221439000,-173.4,0.00012401,2]
[422661043,1779221439000,-2000.0,0.00012415,2]
[422661044,1779221439000,-56952.08652334,0.00012454,2]
[422661047,1779221439000,-500.0,0.00012522,2]
[422661028,1779221439000,-500.0,0.00012248,2]
[422661077,1779221439000,-56952.08652334,0.00013065,2]
[422661039,1779221439000,-1959.02506698,0.00012395,2]
[422661084,1779221439000,-1300.0,0.00013356,2]